[Event "36th German Seniors-ch-65 2024"]
[Site "Bad Wildungen"]
[Date "2024.08.28"]
[Round "6.18"]
[White "Schmidt, Gerhard"]
[Black "Boeven, Manfred"]
[Result "1/2-1/2"]
[ECO "B48"]
[WhiteElo "2088"]
[BlackElo "1998"]
[Annotator "RC"]
[PlyCount "41"]
[EventDate "2024.08.22"]
[EventType "swiss"]
[EventCountry "GER"]
[SourceTitle "playchess.com"]
[Source "ChessBase"]
[SourceQuality "1"]
[TimeControl "40/5400+30:1800+30"]

1. e4 {[%emt 0:00:14]} c5 {[%emt 0:00:15]} 2. Nf3 {[%emt 0:00:14]} e6 {[%emt 0:00:13]} 3. d4 {[%emt 0:00:15]} cxd4 {[%emt 0:00:25]} 4. Nxd4 {[%emt 0:00:02]} Nc6 {[%emt 0:00:15]} 5. Nc3 {[%emt 0:00:36]} Qc7 {[%emt 0:00:15]} 6. Be3 {[%emt 0:00:28]} a6 {[%emt 0:00:21]} 7. Qf3 {[%emt 0:01:01]} b5 {[%emt 0:00:57]} 8. Nxc6 {[%emt 0:01:11]} Qxc6 {[%emt 0:00:56]} 9. Bd3 {[%emt 0:00:37]} Nf6 {[%emt 0:02:09]} 10. e5 {[%emt 0:10:24]} Qxf3 {[%emt 0:00:40]} 11. gxf3 {[%emt 0:00:18]} b4 {[%emt 0:07:13]} 12. exf6 {[%emt 0:02:29]} bxc3 {[%emt 0:00:21]} 13. Bd4 {[%emt 0:00:45]} cxb2 {[%emt 0:02:01]} 14. Rb1 {[%emt 0:02:57]} g6 {[%emt 0:03:37]} 15. Rxb2 {[%emt 0:00:50]} Bd6 {[%emt 0:01:38]} 16. O-O {[%emt 0:09:22]} Rb8 {[%emt 0:05:12]} 17. Rxb8 {[%emt 0:01:38]} Bxb8 {[%emt 0:00:04]} 18. Bc5 {[%emt 0:21:47]} d6 {[%emt 0:09:08]} 19. Be3 {[%emt 0:04:59]} Bc7 {[%emt 0:07:43]} 20. Rb1 {[%emt 0:00:37]} Kd7 {[%emt 0:02:23]} 21. f4 {[%emt 0:06:55]} 1/2-1/2

[Event "36th German Seniors-ch-65 2024"]
[Site "Bad Wildungen"]
[Date "2024.08.28"]
[Round "6.19"]
[White "Zuehlke, Burkhard"]
[Black "Haubt, Georg"]
[Result "1-0"]
[ECO "D92"]
[WhiteElo "1999"]
[BlackElo "2063"]
[Annotator "RC"]
[PlyCount "111"]
[EventDate "2024.08.22"]
[EventType "swiss"]
[EventCountry "GER"]
[SourceTitle "playchess.com"]
[Source "ChessBase"]
[SourceQuality "1"]
[TimeControl "40/5400+30:1800+30"]

1. d4 {[%emt 0:00:30]} Nf6 {[%emt 1:31:00]} 2. c4 {[%emt 0:00:18]} g6 {[%emt 0:00:00]} 3. Nc3 {[%emt 0:00:07]} d5 {[%emt 0:00:00]} 4. Nf3 {[%emt 0:00:34]} Bg7 {[%emt 0:00:00]} 5. Bf4 {[%emt 0:00:18]} O-O {[%emt 0:00:00]} 6. Rc1 {[%emt 0:02:05]} Nc6 {[%emt 0:00:00]} 7. h3 {[%emt 0:13:23]} h6 {[%emt 0:00:00]} 8. e3 {[%emt 0:09:19]} Be6 {[%emt 0:00:00]} 9. b3 {[%emt 0:04:03]} Rc8 {[%emt 0:00:00]} 10. Be2 {[%emt 0:03:43]} Re8 {[%emt 0:00:00]} 11. O-O {[%emt 0:02:44]} Na5 {[%emt 0:00:00]} 12. c5 {[%emt 0:07:28]} c6 {[%emt 0:00:00]} 13. Ne5 {[%emt 0:00:26]} b5 {[%emt 0:00:00]} 14. cxb6 {[%emt 0:01:34]} axb6 {[%emt 0:00:00]} 15. Na4 {[%emt 0:10:23]} Nd7 {[%emt 0:00:00]} 16. Nd3 {[%emt 0:06:01]} Bf5 {[%emt 0:00:00]} 17. Nb4 {[%emt 0:09:36]} e5 {[%emt 0:00:00]} 18. dxe5 {[%emt 0:04:54]} Nxe5 {[%emt 0:00:00]} 19. Re1 {[%emt 0:04:17]} g5 {[%emt 0:00:00]} 20. Bg3 {[%emt 0:00:20]} Be4 {[%emt 0:00:00]} 21. f3 {[%emt 0:03:41]} Bg6 {[%emt 0:00:00]} 22. Bf2 {[%emt 0:03:54]} Bf8 {[%emt 0:00:00]} 23. a3 {[%emt 0:01:09]} Nd7 {[%emt 0:00:00]} 24. Ba6 {[%emt 0:00:39]} Ra8 {[%emt 0:00:00]} 25. Bd3 {[%emt 0:00:19]} b5 {[%emt 0:00:00]} 26. Bxg6 {[%emt 0:02:46]} fxg6 {[%emt 0:00:00]} 27. Nb2 {[%emt 0:00:57]} Nc5 {[%emt 0:00:00]} 28. Nxc6 {[%emt 0:04:22]} Nxc6 {[%emt 0:00:00]} 29. b4 {[%emt 0:00:02]} Rxa3 {[%emt 0:00:00]} 30. bxc5 {[%emt 0:00:07]} b4 {[%emt 0:00:00]} 31. Nd3 {[%emt 0:01:08]} Qa5 {[%emt 0:00:00]} 32. Re2 {[%emt 0:01:34]} Qb5 {[%emt 0:00:08]} 33. Nb2 {[%emt 0:00:26]} Rd8 {[%emt 0:01:53]} 34. Rd2 {[%emt 0:00:26]} Rc3 {[%emt 0:01:20]} 35. Ra1 {[%emt 0:01:04]} Ne7 {[%emt 0:03:26]} 36. e4 {[%emt 0:00:21]} Qc6 {[%emt 0:02:22]} 37. Na4 {[%emt 0:00:54]} Bg7 {[%emt 0:04:13]} 38. Nxc3 {[%emt 0:01:48]} Bxc3 {[%emt 0:00:10]} 39. exd5 {[%emt 0:00:25]} Nxd5 {[%emt 0:00:27]} 40. Rb1 {[%emt 0:01:09]} Bxd2 {[%emt 0:02:07]} 41. Qxd2 {[%emt 0:30:09]} Rb8 {[%emt 0:30:32]} 42. Bd4 {[%emt 0:00:35]} Kh7 {[%emt 0:00:00]} 43. Qf2 {[%emt 0:00:00]} Nf4 {[%emt 0:00:00]} 44. Kh2 {[%emt 0:00:00]} h5 {[%emt 0:00:00]} 45. h4 {[%emt 0:00:00]} Ne6 {[%emt 0:00:00]} 46. Be3 {[%emt 0:00:00]} Qc7+ {[%emt 0:00:00]} 47. Kh1 {[%emt 0:00:00]} Rb5 {[%emt 0:00:00]} 48. hxg5 {[%emt 0:00:00]} b3 {[%emt 0:00:00]} 49. Qe2 {[%emt 0:00:00]} Rb4 {[%emt 0:00:00]} 50. Qe1 {[%emt 0:00:00]} Rb5 {[%emt 0:00:00]} 51. Qe2 {[%emt 0:00:00]} Qc6 {[%emt 0:00:54]} 52. Qc4 {[%emt 0:00:00]} b2 {[%emt 0:01:13]} 53. Qa2 {[%emt 0:00:00]} Qd7 {[%emt 0:04:49]} 54. Rxb2 {[%emt 0:00:41]} Rxb2 {[%emt 0:01:31]} 55. Qxb2 {[%emt 0:00:09]} Qd5 {[%emt 0:00:46]} 56. Qf6 {[%emt 0:01:01]} 1-0

[Event "36th German Seniors-ch-65 2024"]
[Site "Bad Wildungen"]
[Date "2024.08.28"]
[Round "6.20"]
[White "Schmidt, Joerg"]
[Black "Skorna, Ullrich"]
[Result "1/2-1/2"]
[ECO "D02"]
[WhiteElo "1995"]
[BlackElo "2058"]
[Annotator "RC"]
[PlyCount "74"]
[EventDate "2024.08.22"]
[EventType "swiss"]
[EventCountry "GER"]
[SourceTitle "playchess.com"]
[Source "ChessBase"]
[SourceQuality "1"]
[TimeControl "40/5400+30:1800+30"]

1. Nf3 {[%emt 0:00:07]} d5 {[%emt 0:00:14]} 2. d4 {[%emt 0:00:12]} e6 {[%emt 0:00:07]} 3. g3 {[%emt 0:00:09]} Nf6 {[%emt 0:00:12]} 4. Bg2 {[%emt 0:00:16]} Bd6 {[%emt 0:00:30]} 5. O-O {[%emt 0:00:28]} Nbd7 {[%emt 0:00:09]} 6. b3 {[%emt 0:04:29]} e5 {[%emt 0:02:49]} 7. dxe5 {[%emt 0:01:26]} Nxe5 {[%emt 1:29:59]} 8. Bb2 {[%emt 0:00:22]} Qe7 {[%emt 0:00:00]} 9. Nbd2 {[%emt 0:04:03]} c6 {[%emt 0:00:00]} 10. c4 {[%emt 0:04:49]} dxc4 {[%emt 0:00:00]} 11. Nxe5 {[%emt 0:00:59]} Bxe5 {[%emt 0:00:00]} 12. Bxe5 {[%emt 1:19:10]} Qxe5 13. Nxc4 Qe6 14. Qd6 {[%emt 0:00:00]} Qxd6 {[%emt 0:00:00]} 15. Nxd6+ {[%emt 0:00:00]} Ke7 {[%emt 0:00:00]} 16. Rad1 {[%emt 0:00:00]} Rd8 {[%emt 0:00:00]} 17. Nxc8+ {[%emt 0:00:00]} Raxc8 {[%emt 0:00:00]} 18. e4 {[%emt 0:00:00]} Nd7 {[%emt 0:00:00]} 19. Bh3 {[%emt 0:00:00]} Rc7 {[%emt 0:00:00]} 20. f4 {[%emt 0:00:00]} c5 {[%emt 0:00:00]} 21. Rf2 {[%emt 0:00:00]} Nb6 {[%emt 0:00:00]} 22. Rxd8 {[%emt 0:00:00]} Kxd8 {[%emt 0:00:00]} 23. Rd2+ {[%emt 0:00:00]} Ke7 {[%emt 0:00:00]} 24. Kf2 {[%emt 0:00:00]} c4 {[%emt 0:00:00]} 25. bxc4 {[%emt 0:00:00]} Rxc4 {[%emt 0:00:00]} 26. e5 {[%emt 0:00:00]} Rc7 {[%emt 0:00:00]} 27. Bg2 {[%emt 0:00:00]} Na4 {[%emt 0:00:00]} 28. Be4 {[%emt 0:00:00]} h6 {[%emt 0:00:00]} 29. Ke3 {[%emt 0:00:00]} b6 {[%emt 0:00:00]} 30. g4 {[%emt 0:00:00]} Nc5 {[%emt 0:00:00]} 31. Bc2 {[%emt 0:00:00]} Rd7 {[%emt 0:00:00]} 32. Rxd7+ {[%emt 0:00:00]} Kxd7 {[%emt 0:00:00]} 33. h4 {[%emt 0:00:00]} Kc6 {[%emt 0:00:00]} 34. Kd4 {[%emt 0:00:00]} Ne6+ {[%emt 0:00:00]} 35. Ke4 {[%emt 0:00:00]} Nc5+ {[%emt 0:00:00]} 36. Kf5 {[%emt 0:00:00]} Ne6 {[%emt 0:00:00]} 37. Ke4 {[%emt 0:00:00]} Nc5+ {[%emt 0:00:00]} 1/2-1/2

[Event "36th German Seniors-ch-65 2024"]
[Site "Bad Wildungen"]
[Date "2024.08.28"]
[Round "6.21"]
[White "Neumann, Joachim"]
[Black "Ehlert, Horst"]
[Result "1/2-1/2"]
[ECO "B38"]
[WhiteElo "2056"]
[BlackElo "1951"]
[Annotator "RC"]
[PlyCount "66"]
[EventDate "2024.08.22"]
[EventType "swiss"]
[EventCountry "GER"]
[SourceTitle "playchess.com"]
[Source "ChessBase"]
[SourceQuality "1"]
[TimeControl "40/5400+30:1800+30"]

1. Nf3 {[%emt 0:00:08]} c5 {[%emt 0:01:51]} 2. c4 {[%emt 0:00:36]} Nc6 {[%emt 0:00:30]} 3. d4 {[%emt 0:03:52]} cxd4 {[%emt 0:02:58]} 4. Nxd4 {[%emt 0:00:02]} g6 {[%emt 0:00:55]} 5. e4 {[%emt 0:01:08]} Bg7 {[%emt 0:00:19]} 6. Be3 {[%emt 0:00:20]} Nf6 {[%emt 0:01:47]} 7. Nc3 {[%emt 0:00:14]} d6 {[%emt 0:02:02]} 8. Be2 {[%emt 0:00:45]} O-O {[%emt 0:01:45]} 9. O-O {[%emt 0:01:16]} Bd7 {[%emt 0:08:02]} 10. h3 {[%emt 0:01:24]} Nxd4 {[%emt 0:11:43]} 11. Bxd4 {[%emt 0:00:14]} Bc6 {[%emt 0:00:15]} 12. Qc2 {[%emt 0:02:58]} a6 {[%emt 0:06:44]} 13. Rad1 {[%emt 0:12:47]} Nd7 {[%emt 0:22:13]} 14. Bxg7 {[%emt 0:08:20]} Kxg7 {[%emt 0:01:15]} 15. Bg4 {[%emt 0:00:18]} Ne5 {[%emt 0:08:12]} 16. c5 {[%emt 0:00:23]} Nxg4 {[%emt 0:00:29]} 17. hxg4 {[%emt 0:00:09]} Qc8 {[%emt 0:03:05]} 18. cxd6 {[%emt 0:04:16]} exd6 {[%emt 0:00:39]} 19. f3 {[%emt 0:08:51]} Qe6 {[%emt 0:01:46]} 20. Rd4 {[%emt 0:05:44]} Rad8 {[%emt 0:03:23]} 21. Rfd1 {[%emt 0:00:48]} Qe5 {[%emt 0:03:30]} 22. Qd2 {[%emt 0:02:17]} h5 {[%emt 0:01:18]} 23. gxh5 {[%emt 0:01:10]} Qxh5 {[%emt 0:00:16]} 24. Rxd6 {[%emt 0:01:44]} Rde8 {[%emt 0:04:39]} 25. Qd4+ {[%emt 0:08:08]} Kg8 {[%emt 0:00:28]} 26. Nd5 {[%emt 0:03:55]} Bxd5 {[%emt 0:00:59]} 27. Qxd5 {[%emt 0:00:03]} Qh6 {[%emt 0:02:53]} 28. Qd2 {[%emt 0:01:14]} Qh4 {[%emt 0:01:33]} 29. Qd5 {[%emt 0:08:09]} Qg3 {[%emt 0:01:13]} 30. Qd4 {[%emt 0:06:42]} Rc8 {[%emt 0:00:32]} 31. Qf2 {[%emt 0:02:13]} Qe5 {[%emt 0:00:38]} 32. R6d5 {[%emt 0:01:13]} Qf6 {[%emt 0:01:14]} 33. g3 {[%emt 0:00:39]} Rc4 {[%emt 0:00:28]} 1/2-1/2

[Event "36th German Seniors-ch-65 2024"]
[Site "Bad Wildungen"]
[Date "2024.08.28"]
[Round "6.22"]
[White "Erler, Rainer"]
[Black "Wuest, Michael"]
[Result "1-0"]
[ECO "C92"]
[WhiteElo "2122"]
[BlackElo "1932"]
[Annotator "RC"]
[PlyCount "87"]
[EventDate "2024.08.22"]
[EventType "swiss"]
[EventCountry "GER"]
[SourceTitle "playchess.com"]
[Source "ChessBase"]
[SourceQuality "1"]
[TimeControl "40/5400+30:1800+30"]

1. e4 {[%emt 0:00:03]} e5 {[%emt 0:00:07]} 2. Nf3 {[%emt 0:00:04]} Nc6 {[%emt 0:00:03]} 3. Bb5 {[%emt 0:00:06]} a6 {[%emt 0:00:06]} 4. Ba4 {[%emt 0:00:03]} Nf6 {[%emt 0:00:14]} 5. O-O {[%emt 0:00:06]} Be7 {[%emt 0:00:13]} 6. Re1 {[%emt 0:00:02]} b5 {[%emt 0:00:39]} 7. Bb3 {[%emt 0:00:03]} d6 {[%emt 0:01:08]} 8. c3 {[%emt 0:00:05]} O-O {[%emt 0:00:56]} 9. h3 {[%emt 0:00:04]} Bb7 {[%emt 0:01:20]} 10. d4 {[%emt 0:01:25]} Re8 {[%emt 0:01:48]} 11. Ng5 {[%emt 0:02:19]} Rf8 {[%emt 0:01:03]} 12. f4 {[%emt 0:06:03]} h6 {[%emt 0:09:49]} 13. Nf3 {[%emt 0:00:26]} exd4 {[%emt 0:03:10]} 14. cxd4 {[%emt 0:02:42]} d5 {[%emt 0:05:21]} 15. e5 {[%emt 0:00:42]} Ne4 {[%emt 0:01:55]} 16. Nc3 {[%emt 0:00:48]} Na5 {[%emt 0:05:27]} 17. Bc2 {[%emt 0:06:28]} Bb4 {[%emt 0:06:16]} 18. Bd2 {[%emt 0:08:38]} Bxc3 {[%emt 0:05:07]} 19. Bxc3 {[%emt 0:00:55]} Nc4 {[%emt 0:02:47]} 20. a4 {[%emt 0:22:41]} bxa4 {[%emt 0:06:40]} 21. Rxa4 {[%emt 0:01:43]} Nxc3 {[%emt 0:04:32]} 22. bxc3 {[%emt 0:04:28]} Nb2 {[%emt 0:02:00]} 23. Qd2 {[%emt 0:00:57]} Nxa4 {[%emt 0:01:08]} 24. Qd3 {[%emt 0:00:56]} g6 {[%emt 0:02:41]} 25. Bxa4 {[%emt 0:00:26]} Qe7 {[%emt 0:04:13]} 26. f5 {[%emt 0:02:00]} gxf5 {[%emt 0:02:10]} 27. Qxf5 {[%emt 0:02:33]} Bc8 {[%emt 0:02:37]} 28. Qf4 {[%emt 0:03:23]} Qe6 {[%emt 0:04:43]} 29. Bc2 {[%emt 0:01:35]} f5 {[%emt 0:04:28]} 30. exf6 {[%emt 0:04:04]} Qxf6 {[%emt 0:02:32]} 31. Qxc7 {[%emt 0:02:04]} Bf5 {[%emt 0:02:40]} 32. Bb3 {[%emt 0:00:48]} Rad8 {[%emt 0:02:09]} 33. Re5 {[%emt 0:01:58]} Kh8 {[%emt 0:04:29]} 34. Bxd5 {[%emt 0:02:22]} Rc8 {[%emt 0:01:43]} 35. Qa5 {[%emt 0:00:44]} Bd3 {[%emt 0:01:29]} 36. Re6 {[%emt 0:15:01]} Qf4 {[%emt 0:02:21]} 37. Qa1 {[%emt 0:03:51]} Rb8 {[%emt 0:01:35]} 38. Re1 {[%emt 0:00:24]} Qg3 {[%emt 0:01:25]} 39. Qc1 {[%emt 0:00:43]} Qg6 {[%emt 0:01:38]} 40. Ne5 {[%emt 0:03:43]} Qh7 {[%emt 0:03:58]} 41. Nxd3 {[%emt 0:30:35]} Qxd3 {[%emt 0:30:13]} 42. Be4 {[%emt 0:00:10]} Rf1+ {[%emt 0:00:00]} 43. Rxf1 {[%emt 0:00:00]} Qxe4 {[%emt 0:00:00]} 44. Qxh6+ {[%emt 0:04:19]} 1-0

[Event "36th German Seniors-ch-65 2024"]
[Site "Bad Wildungen"]
[Date "2024.08.29"]
[Round "7.1"]
[White "Buchal, Stephan"]
[Black "Juhnke, Juergen"]
[Result "1/2-1/2"]
[ECO "A26"]
[WhiteElo "2215"]
[BlackElo "2259"]
[Annotator "RC"]
[PlyCount "33"]
[EventDate "2024.08.22"]
[EventType "swiss"]
[EventCountry "GER"]
[SourceTitle "playchess.com"]
[Source "ChessBase"]
[SourceQuality "1"]
[TimeControl "40/5400+30:1800+30"]

1. Nf3 {[%emt 0:00:19]} Nf6 {[%emt 0:00:07]} 2. c4 {[%emt 0:00:27]} g6 {[%emt 0:00:06]} 3. g3 {[%emt 0:00:20]} Bg7 {[%emt 0:00:06]} 4. Bg2 {[%emt 0:00:09]} O-O {[%emt 0:00:09]} 5. O-O {[%emt 0:00:11]} d6 {[%emt 0:00:12]} 6. Nc3 {[%emt 0:02:13]} Nc6 {[%emt 0:00:22]} 7. d3 {[%emt 0:03:40]} e5 {[%emt 0:00:10]} 8. Rb1 {[%emt 0:00:52]} a5 {[%emt 0:00:11]} 9. a3 {[%emt 0:00:26]} Re8 {[%emt 0:00:24]} 10. b4 {[%emt 0:05:28]} axb4 {[%emt 0:00:08]} 11. axb4 {[%emt 0:00:03]} e4 {[%emt 0:00:06]} 12. dxe4 {[%emt 0:02:24]} Nxe4 {[%emt 0:00:07]} 13. Nxe4 {[%emt 0:00:13]} Rxe4 {[%emt 0:00:02]} 14. b5 {[%emt 0:07:31]} Na5 {[%emt 0:00:27]} 15. Nd2 {[%emt 0:00:49]} Re8 {[%emt 0:00:13]} 16. Bb2 {[%emt 0:01:55]} Bf5 {[%emt 0:11:24]} 17. e4 {[%emt 0:15:28]} 1/2-1/2

[Event "36th German Seniors-ch-65 2024"]
[Site "Bad Wildungen"]
[Date "2024.08.29"]
[Round "7.2"]
[White "Podat, Vladimir"]
[Black "Dekan, Hans"]
[Result "1-0"]
[ECO "B31"]
[WhiteElo "2157"]
[BlackElo "2079"]
[Annotator "RC"]
[PlyCount "64"]
[EventDate "2024.08.22"]
[EventType "swiss"]
[EventCountry "GER"]
[SourceTitle "playchess.com"]
[Source "ChessBase"]
[SourceQuality "1"]
[TimeControl "40/5400+30:1800+30"]

1. e4 {[%emt 0:00:07]} c5 {[%emt 0:00:15]} 2. Nf3 {[%emt 0:00:07]} Nc6 {[%emt 0:00:26]} 3. Bb5 {[%emt 0:00:10]} g6 {[%emt 0:01:10]} 4. O-O {[%emt 0:00:13]} Bg7 {[%emt 0:00:11]} 5. Re1 {[%emt 0:00:17]} a6 {[%emt 0:09:06]} 6. Bxc6 {[%emt 0:00:22]} dxc6 {[%emt 0:00:07]} 7. d3 {[%emt 0:00:11]} Bg4 {[%emt 0:02:30]} 8. h3 {[%emt 0:00:42]} Bxf3 {[%emt 0:00:49]} 9. Qxf3 {[%emt 0:00:06]} e6 {[%emt 0:00:27]} 10. a4 {[%emt 0:09:27]} b6 {[%emt 0:14:12]} 11. a5 {[%emt 0:10:35]} b5 {[%emt 0:00:37]} 12. e5 {[%emt 0:15:07]} Qd5 {[%emt 0:11:49]} 13. Qg3 {[%emt 0:12:38]} Ne7 {[%emt 0:04:42]} 14. Nc3 {[%emt 0:00:06]} Qd7 {[%emt 0:01:07]} 15. Bf4 {[%emt 0:02:59]} Nf5 {[%emt 0:03:31]} 16. Qf3 {[%emt 0:00:14]} Nd4 {[%emt 0:00:22]} 17. Qd1 {[%emt 0:00:05]} O-O {[%emt 0:03:43]} 18. Ne4 {[%emt 0:01:44]} Qd5 {[%emt 0:04:19]} 19. Nc3 {[%emt 0:12:44]} Qd7 {[%emt 0:00:21]} 20. Bg5 {[%emt 0:04:15]} h6 {[%emt 0:03:20]} 21. Bf6 {[%emt 0:00:10]} Bxf6 {[%emt 0:16:36]} 22. exf6 {[%emt 0:00:06]} Qd8 {[%emt 0:00:15]} 23. Ne4 {[%emt 0:00:13]} Qd5 {[%emt 0:00:13]} 24. Qd2 {[%emt 0:02:01]} Qh5 {[%emt 0:01:45]} 25. Re3 {[%emt 0:05:27]} Rad8 {[%emt 0:02:43]} 26. Rae1 {[%emt 0:00:18]} Rd5 {[%emt 0:04:22]} 27. f4 {[%emt 0:05:41]} g5 {[%emt 0:03:21]} 28. Rg3 {[%emt 0:01:04]} Kh8 {[%emt 0:02:34]} 29. fxg5 {[%emt 0:00:14]} Rg8 {[%emt 0:00:25]} 30. gxh6 {[%emt 0:01:44]} Rxg3 {[%emt 0:00:32]} 31. Nxg3 {[%emt 0:00:01]} Qxh3 {[%emt 0:00:12]} 32. Qf4 {[%emt 0:00:44]} Rf5 {[%emt 0:10:28]} 1-0

[Event "36th German Seniors-ch-65 2024"]
[Site "Bad Wildungen"]
[Date "2024.08.29"]
[Round "7.3"]
[White "Schrems, Hermann"]
[Black "Kaeding, Rainer"]
[Result "1/2-1/2"]
[ECO "A46"]
[WhiteElo "2118"]
[BlackElo "2116"]
[Annotator "RC"]
[PlyCount "59"]
[EventDate "2024.08.22"]
[EventType "swiss"]
[EventCountry "GER"]
[SourceTitle "playchess.com"]
[Source "ChessBase"]
[SourceQuality "1"]
[TimeControl "40/5400+30:1800+30"]

1. d4 {[%emt 0:00:05]} d5 {[%emt 0:00:12]} 2. Nf3 {[%emt 0:00:06]} e6 {[%emt 0:00:17]} 3. g3 {[%emt 0:00:06]} Nf6 {[%emt 0:00:34]} 4. Bg2 {[%emt 0:00:05]} b5 {[%emt 0:01:08]} 5. a4 {[%emt 0:00:39]} b4 {[%emt 0:00:07]} 6. c4 {[%emt 0:00:22]} bxc3 {[%emt 0:00:07]} 7. Nxc3 {[%emt 0:00:06]} Be7 {[%emt 0:00:12]} 8. O-O {[%emt 0:00:07]} O-O {[%emt 0:00:05]} 9. Ne5 {[%emt 0:00:38]} a5 {[%emt 0:00:31]} 10. Qc2 {[%emt 0:02:10]} c6 {[%emt 0:01:49]} 11. Bd2 {[%emt 0:02:21]} Qb6 {[%emt 0:03:15]} 12. e3 {[%emt 0:01:08]} Nfd7 {[%emt 0:01:56]} 13. Nd3 {[%emt 0:00:14]} Na6 {[%emt 0:01:46]} 14. Rfc1 {[%emt 0:01:46]} Nb4 {[%emt 0:03:29]} 15. Nxb4 {[%emt 0:00:11]} Bxb4 {[%emt 0:00:16]} 16. Nb1 {[%emt 0:04:45]} Bb7 {[%emt 0:01:53]} 17. Bxb4 {[%emt 0:03:00]} Qxb4 {[%emt 0:03:13]} 18. Ra3 {[%emt 0:01:09]} Qb6 {[%emt 0:09:28]} 19. Nd2 {[%emt 0:02:18]} Rab8 {[%emt 0:03:47]} 20. Rc3 {[%emt 0:01:41]} Qb4 {[%emt 0:04:57]} 21. Rb3 {[%emt 0:15:22]} Qxa4 {[%emt 0:08:00]} 22. Qd1 {[%emt 0:00:13]} c5 {[%emt 0:03:19]} 23. Ra1 {[%emt 0:13:04]} Qc6 {[%emt 0:01:04]} 24. dxc5 {[%emt 0:08:35]} Nxc5 {[%emt 0:02:23]} 25. Rc3 {[%emt 0:00:10]} Qb6 {[%emt 0:00:53]} 26. Nb3 {[%emt 0:01:46]} Rfc8 {[%emt 0:06:37]} 27. Qd4 {[%emt 0:10:23]} e5 {[%emt 0:06:30]} 28. Qd1 {[%emt 0:01:29]} Nxb3 {[%emt 0:00:38]} 29. Rxb3 {[%emt 0:00:03]} Qd8 {[%emt 0:00:14]} 30. Rb5 {[%emt 0:06:02]} 1/2-1/2

[Event "36th German Seniors-ch-65 2024"]
[Site "Bad Wildungen"]
[Date "2024.08.29"]
[Round "7.4"]
[White "Klundt, Klaus"]
[Black "Rosen, Willy"]
[Result "1-0"]
[ECO "B33"]
[WhiteElo "2264"]
[BlackElo "2091"]
[Annotator "RC"]
[PlyCount "63"]
[EventDate "2024.08.22"]
[EventType "swiss"]
[EventCountry "GER"]
[SourceTitle "playchess.com"]
[Source "ChessBase"]
[SourceQuality "1"]
[TimeControl "40/5400+30:1800+30"]

1. e4 {[%emt 0:00:02]} c5 {[%emt 0:00:06]} 2. Nf3 {[%emt 0:00:05]} Nc6 {[%emt 0:00:07]} 3. d4 {[%emt 0:00:05]} cxd4 {[%emt 0:00:05]} 4. Nxd4 {[%emt 0:00:06]} Qb6 {[%emt 0:00:06]} 5. Nb3 {[%emt 0:00:07]} Nf6 {[%emt 0:00:06]} 6. Nc3 {[%emt 0:00:09]} e6 {[%emt 0:00:06]} 7. Qe2 {[%emt 0:00:29]} Bb4 {[%emt 0:03:30]} 8. Bd2 {[%emt 0:00:13]} d6 {[%emt 0:00:11]} 9. O-O-O {[%emt 0:02:19]} e5 {[%emt 0:00:21]} 10. a3 {[%emt 0:03:29]} Bxc3 {[%emt 0:00:16]} 11. Bxc3 {[%emt 0:00:02]} Be6 {[%emt 0:01:49]} 12. f3 {[%emt 0:13:26]} Bxb3 {[%emt 0:09:07]} 13. cxb3 {[%emt 0:00:04]} Qxb3 {[%emt 0:00:22]} 14. Rxd6 {[%emt 0:02:08]} O-O {[%emt 0:02:04]} 15. Qc4 {[%emt 0:09:00]} Qb6 {[%emt 0:00:16]} 16. Qb5 {[%emt 0:00:05]} Qc7 {[%emt 0:03:14]} 17. Rd1 {[%emt 0:00:19]} a6 {[%emt 0:01:21]} 18. Qc5 {[%emt 0:00:56]} Rac8 {[%emt 0:00:28]} 19. Kb1 {[%emt 0:01:06]} b6 {[%emt 0:02:19]} 20. Qf2 {[%emt 0:01:26]} b5 {[%emt 0:01:21]} 21. Be2 {[%emt 0:03:10]} Qb7 {[%emt 0:01:18]} 22. Rd6 {[%emt 0:00:41]} a5 {[%emt 0:05:53]} 23. Rxf6 {[%emt 0:07:55]} gxf6 {[%emt 0:00:21]} 24. Qg3+ {[%emt 0:00:10]} Kh8 {[%emt 0:00:09]} 25. Qh4 {[%emt 0:00:03]} Qe7 {[%emt 0:08:29]} 26. Bxb5 {[%emt 0:01:55]} Nd4 {[%emt 0:00:15]} 27. Bxd4 {[%emt 0:01:20]} exd4 {[%emt 0:00:03]} 28. Rd1 {[%emt 0:00:23]} Rfd8 {[%emt 0:02:28]} 29. Bd3 {[%emt 0:00:54]} Rg8 {[%emt 0:05:44]} 30. e5 {[%emt 0:01:04]} Rg6 {[%emt 0:00:57]} 31. Bxg6 {[%emt 0:00:42]} fxg6 {[%emt 0:00:03]} 32. exf6 {[%emt 0:00:29]} 1-0